bitfinex/quotes_ETHUSD_20250923
["timestamp","ask_amount","ask_price","bid_price","bid_amount"]
[1758629722344,4.7964295,4203.2,4203.1,2.37915574]
[1758629722546,4.10569618,4203.2,4203.1,2.37915574]
[1758629722746,4.10569618,4203.2,4203.1,2.62395574]
[1758629723156,4.32816483,4203.2,4203.1,2.62395574]
[1758629723359,4.10569618,4203.2,4203.1,2.62395574]
[1758629723555,0.13269618,4203.2,4203.1,2.62395574]
[1758629723755,4.10569618,4203.2,4203.1,2.62395574]
[1758629725099,0.13269618,4203.2,4203.1,2.62395574]
[1758629725291,0.13269618,4203.2,4203.1,2.6477477]
[1758629725454,0.13269618,4203.2,4203.1,3.0826477]
[1758629726105,0.13269618,4203.2,4203.1,3.45563901]
[1758629726453,0.13269618,4203.2,4203.1,3.45963901]
[1758629726876,0.1184,4203.6,4203.5,2.3789699]
[1758629727186,0.001,4203.8,4203.7,2.37885672]
[1758629727482,0.001,4203.8,4203.7,2.40264528]
[1758629727691,0.001,4203.8,4203.7,3.08234528]
[1758629728056,0.001,4203.8,4203.7,3.05855672]
[1758629728699,0.001,4203.8,4203.7,3.17695672]
[1758629729067,0.001,4203.8,4203.7,3.20074528]
[1758629730486,0.001,4203.8,4203.7,17.70074528]
[1758629730804,1e-08,4203.9,4203.8,2.37880013]
[1758629731084,1e-08,4203.9,4203.8,2.62360013]
[1758629731506,1e-08,4203.9,4203.8,2.37880013]
[1758629731721,1e-08,4203.9,4203.8,2.62000013]
[1758629731897,1e-08,4203.9,4203.8,2.37880013]
[1758629732475,1e-08,4203.9,4203.8,2.62000013]
[1758629733088,1e-08,4203.9,4203.8,2.64378813]
[1758629733488,1e-08,4203.9,4203.8,3.07858813]
[1758629734017,1e-08,4203.9,4203.8,17.57858813]
[1758629734222,1e-08,4203.9,4203.8,17.55480013]
[1758629735897,1e-08,4203.9,4203.8,17.12000013]
[1758629736524,1e-08,4203.9,4203.8,16.87880013]
[1758629737190,1e-08,4203.9,4203.8,17.67320013]
[1758629737988,1e-08,4203.9,4203.8,17.23840013]
[1758629741028,1e-08,4203.9,4203.8,21.21140013]
[1758629741234,0.13340392,4203.9,4203.8,21.21140013]
[1758629742041,0.13340392,4203.9,4203.8,20.97020013]
[1758629742249,0.13340392,4203.9,4203.8,21.21140013]
[1758629742800,1e-08,4203.9,4203.8,21.21140013]
[1758629744316,0.13342435,4203.9,4203.8,21.21140013]
[1758629746038,0.13342435,4203.9,4203.8,20.97020013]
[1758629746833,0.13262435,4203.9,4203.8,20.97020013]
[1758629747503,0.82092435,4203.9,4203.8,20.97020013]
[1758629747903,0.82092435,4203.9,4203.8,20.85180013]
[1758629748209,0.82092435,4203.9,4203.8,2.37880013]
[1758629749115,0.58272435,4203.9,4203.8,2.37880013]
[1758629749314,0.13262435,4203.9,4203.8,2.37880013]
[1758629753520,1e-08,4203.9,4203.8,2.37880013]
[1758629753725,1e-08,4203.9,4203.8,7.02680013]
[1758629754556,0.001,4204.0,4203.9,2.37874354]
[1758629754744,0.22393127,4204.0,4203.9,2.64373097]
[1758629755529,0.001,4204.0,4203.9,2.64373097]
[1758629755944,0.22404749,4204.0,4203.9,2.64373097]
[1758629756554,0.22404749,4204.0,4203.9,2.37874354]
[1758629757319,0.22417635,4204.0,4203.9,2.37874354]
[1758629758348,0.91247635,4204.0,4203.9,2.37874354]
[1758629758861,0.91247635,4204.0,4203.9,16.87874354]
[1758629759450,0.91247635,4204.0,4203.9,2.37874354]
[1758629760428,2.29516357,4204.0,4203.9,2.37874354]
[1758629761229,0.91247635,4204.0,4203.9,2.37874354]
[1758629762922,0.9124607,4204.0,4203.9,2.37874354]
[1758629764262,4.8844607,4204.0,4203.9,2.37874354]
[1758629764675,13.04689446,4204.0,4203.9,2.37874354]
[1758629764979,15.35859446,4204.0,4203.9,2.37874354]
[1758629765267,15.35859446,4204.0,4203.8,2.38280013]
[1758629765268,3.0,4203.9,4203.8,0.004]
[1758629765467,3.24210198,4203.9,4203.8,0.004]
[1758629765765,4.07648427,4203.9,4203.8,0.004]
[1758629766238,3.94260198,4203.9,4203.8,0.004]
[1758629766444,5.95578246,4203.9,4203.8,0.004]
[1758629766642,5.93684118,4203.9,4203.8,0.004]
[1758629766841,6.95184163,4203.9,4203.8,0.004]
[1758629767058,9.33058517,4203.9,4203.8,0.004]
[1758629767368,0.792,4203.6,4203.3,0.004]
[1758629767666,11.16243376,4203.4,4203.3,0.004]
[1758629768164,11.86293376,4203.4,4203.3,0.004]
[1758629768367,11.39463376,4203.4,4203.3,0.004]
[1758629768666,12.21975096,4203.4,4203.3,0.004]
[1758629769091,11.86293376,4203.4,4203.3,0.004]
[1758629769260,13.51382722,4203.4,4203.3,0.004]
[1758629769454,11.16243376,4203.4,4203.3,2.3830831]
[1758629769689,9.032,4203.4,4203.3,2.3830831]
[1758629769891,6.975,4203.4,4203.3,2.3830831]
[1758629770078,6.975,4203.4,4203.3,2.6108831]
[1758629771275,7.19797024,4203.4,4203.3,2.6108831]
[1758629771697,7.19717024,4203.4,4203.3,2.6108831]
[1758629771864,6.9742,4203.4,4203.3,2.6108831]
[1758629772062,3.35594678,4203.4,4203.3,2.3830831]
[1758629772258,7.33294678,4203.4,4203.3,2.6108831]
[1758629772593,7.33293789,4203.4,4203.3,2.6108831]
[1758629773272,6.9762,4203.4,4203.3,2.6108831]
[1758629773477,7.33282624,4203.4,4203.3,2.6108831]
[1758629774176,7.33282624,4203.4,4203.3,3.0616831]
[1758629774177,0.35662624,4203.4,4203.3,3.0616831]
[1758629774687,0.35659091,4203.4,4203.3,3.0616831]
[1758629775663,0.13369951,4203.4,4203.3,3.0616831]
[1758629776605,0.001,4204.0,4203.5,2.3789699]
[1758629776771,0.35647878,4203.9,4203.6,0.02378913]
[1758629776974,0.22279819,4203.8,4203.7,0.7102]
[1758629777289,0.22279819,4203.8,4203.7,3.08905672]
[1758629777506,0.001,4204.0,4203.9,2.37874354]
[1758629777720,0.22379369,4204.0,4203.9,2.37874354]
[1758629778068,0.22379369,4204.0,4203.9,3.08894354]
[1758629780306,0.2237763,4204.0,4203.9,3.08894354]
[1758629780604,0.001,4204.0,4203.9,3.08894354]
[1758629781016,0.001,4204.0,4203.9,3.20734354]
[1758629781715,0.001,4204.0,4203.9,17.70734354]
[1758629781914,2.058,4206.4,4204.0,3.17068696]
[1758629782218,0.2325,4206.5,4205.8,2.37766893]
[1758629782422,0.02,4206.9,4205.7,4.00477725]
[1758629782599,0.02,4206.9,4205.8,14.5]
[1758629782768,0.01894128,4206.8,4206.7,2.37716024]
[1758629783700,0.70614128,4206.8,4206.7,2.37716024]
[1758629783870,5.90916101,4206.8,4206.7,2.37716024]
[1758629784068,5.89021973,4206.8,4206.7,2.37716024]
[1758629785272,1.89321973,4206.8,4206.7,2.37716024]
[1758629785472,5.65671973,4206.8,4206.7,2.37716024]
[1758629785701,1.20601973,4206.8,4206.7,2.37716024]
[1758629786011,5.20101973,4206.8,4206.7,2.37716024]
[1758629786171,0.02,4206.9,4206.8,2.37710373]
[1758629786377,3.7072,4206.9,4206.8,2.37710373]
[1758629786609,3.72614128,4206.9,4206.8,2.37710373]
[1758629786789,3.72614128,4206.9,4205.8,14.9737]
[1758629786790,3.72614128,4206.9,4206.0,0.71500498]
[1758629786991,8.16243376,4206.5,4206.4,2.37732978]
[1758629787294,8.84963376,4206.5,4206.4,2.37732978]
[1758629787697,12.73288304,4206.5,4206.4,2.37732978]
[1758629788274,12.50038304,4206.5,4206.4,2.37732978]
[1758629788469,0.17162227,4207.0,4206.4,2.37732978]
[1758629788470,0.71502202,4208.7,4206.5,4.75454652]
[1758629788670,0.13267929,4208.5,4208.4,2.37619998]
[1758629788931,0.71502202,4208.7,4208.4,0.73396199]
[1758629789230,0.02,4208.9,4208.8,2.37597414]
[1758629789726,0.2092,4208.9,4208.4,14.5]
[1758629789875,0.2092,4208.9,4208.4,0.71450431]
[1758629789876,8.16243376,4208.7,4208.4,0.71450431]
[1758629790075,8.16243376,4208.7,4207.6,0.2365]
[1758629790076,0.70614128,4208.6,4208.3,2.37625233]
[1758629790275,6.7932,4208.5,4208.3,14.5]
[1758629790527,1.38735541,4208.4,4207.3,0.71450431]
[1758629790722,8.16243376,4208.2,4207.2,2.3768738]
[1758629790926,4.06794128,4208.1,4208.0,2.37637606]
[1758629791078,0.01894128,4208.1,4208.0,2.37637606]
[1758629791278,2.089,4208.6,4207.5,4.049]
[1758629791512,2.089,4208.6,4208.5,2.37614351]
[1758629792078,0.13734128,4208.8,4208.7,2.3760306]
[1758629792310,4.18834128,4208.8,4208.7,2.3760306]
[1758629792779,0.13734128,4208.8,4208.7,2.3760306]
[1758629793008,7.1684,4208.8,4208.1,0.1184]
[1758629793329,3.94537541,4208.7,4208.5,2.37608826]
[1758629793480,0.01894128,4208.6,4208.5,2.37608826]
[1758629793974,7.06894128,4208.6,4208.5,2.37608826]
[1758629794179,3.0,4208.6,4208.5,2.37608826]
[1758629794380,7.06894128,4208.6,4208.5,2.37608826]
[1758629794576,7.06894128,4208.6,4207.9,2.37648233]
[1758629794577,3.1184,4208.5,4207.9,2.37648233]
[1758629794802,3.0,4208.3,4207.9,2.37648233]
[1758629794990,8.16243376,4208.1,4207.9,2.37648233]
[1758629795201,4.06794128,4208.0,4207.9,2.37648233]
[1758629795407,7.06794128,4208.0,4207.9,2.37648233]
[1758629795578,8.5838775,4208.0,4207.9,2.37648233]
[1758629796629,7.0482,4208.0,4207.9,2.37648233]
[1758629798224,3.0,4207.9,4207.2,0.1184]
[1758629798426,6.103,4207.8,4207.2,2.37685459]
[1758629798608,0.001,4208.0,4207.9,2.37648233]
[1758629798782,3.0,4207.9,4206.8,4.053]
[1758629798982,0.92994128,4207.8,4207.7,2.37657708]
[1758629799217,7.968,4207.8,4207.7,2.37657708]
[1758629799416,3.0,4207.7,4206.5,4.053]
[1758629799576,4.968,4207.8,4207.5,2.37666434]
[1758629799778,4.968,4207.8,4206.7,2.37715326]
[1758629800022,4.968,4207.8,4203.4,0.11949649]
[1758629800023,1.0025,4207.7,4207.3,2.37681343]
[1758629800218,3.0,4207.5,4207.4,2.37675297]
[1758629800390,4.059,4207.5,4207.0,2.37694886]
[1758629800742,7.07794128,4207.5,4207.4,2.37676474]
[1758629801014,7.059,4207.5,4207.4,2.37676474]
[1758629802320,3.0,4207.5,4207.4,2.37676474]
[1758629802624,3.0,4207.4,4206.2,2.37744282]
[1758629802780,3.0,4207.4,4207.3,2.37682123]
[1758629802984,3.0,4207.4,4206.4,2.37731395]
[1758629803308,3.0,4207.2,4207.1,2.37691715]
[1758629804185,3.0,4207.2,4206.9,2.37700969]
[1758629804186,3.0,4207.2,4206.3,2.3773863]
[1758629804386,3.951725,4207.2,4206.9,2.37700203]
[1758629804621,0.13227623,4207.1,4206.1,0.02]
[1758629804920,3.0,4206.9,4206.1,0.02]
[1758629805218,3.0,4206.9,4206.2,2.37743516]
[1758629805219,0.15121751,4206.8,4206.2,2.37743516]
[1758629805431,3.0,4206.6,4206.1,0.02]
[1758629805595,3.0,4206.4,4206.1,2.39749772]
[1758629805797,3.0,4206.2,4206.1,2.39749772]
[1758629806017,3.13227623,4206.2,4206.1,2.39749772]
[1758629806318,3.13227623,4206.2,4206.1,0.02]
[1758629806522,3.35316074,4206.2,4206.1,0.02]
[1758629806716,4.61003692,4206.2,4206.1,0.02]
[1758629806885,1.61003692,4206.2,4206.1,0.02]
[1758629807084,9.48910202,4206.2,4206.1,0.02]
[1758629807318,10.26216074,4206.2,4206.1,0.02]
[1758629807888,3.35316074,4206.2,4206.1,0.02]
[1758629808234,10.28010202,4206.2,4206.1,0.02]
[1758629808382,8.20616074,4206.2,4206.1,0.02]
[1758629808583,11.08377681,4206.2,4206.1,0.02]
[1758629811287,10.29277681,4206.2,4206.1,0.02]
[1758629811919,8.23377681,4206.2,4206.1,0.02]
[1758629812123,10.29077681,4206.2,4206.1,0.02]
[1758629812525,11.08277681,4206.2,4206.1,0.02]
[1758629812843,13.46021963,4206.2,4206.1,0.02]
[1758629814216,13.46078585,4206.2,4206.1,0.02]
[1758629814413,11.08334303,4206.2,4206.1,0.02]
[1758629815148,13.46078585,4206.2,4206.1,0.02]
[1758629816537,0.792,4205.3,4205.1,0.02]
[1758629816855,9.48766824,4205.2,4205.1,0.02]
[1758629817011,9.46872696,4205.2,4205.1,0.02]
[1758629817208,3.35372696,4205.2,4205.1,0.02]
[1758629817549,9.46872696,4205.2,4205.1,0.02]
[1758629817872,10.41559966,4205.2,4205.1,0.02]
[1758629818049,4.30059966,4205.2,4205.1,0.02]
[1758629818527,9.46872696,4205.2,4205.1,0.02]
[1758629820253,3.35372696,4205.2,4205.1,2.39806473]
[1758629820462,9.46672696,4205.2,4205.1,2.39806473]
[1758629820728,9.46672696,4205.2,4205.1,0.02]
[1758629820931,9.83956081,4205.2,4205.1,2.39806473]
[1758629821631,9.83876081,4205.2,4205.1,2.39806473]
[1758629821827,0.72576081,4205.2,4205.1,2.39806473]
[1758629822034,0.13284245,4205.2,4205.1,2.39806473]
[1758629822224,1.61024245,4205.2,4205.1,2.39806473]
[1758629822428,1.4774,4205.2,4205.1,2.39806473]
[1758629823255,1.61012558,4205.2,4205.1,2.39806473]
[1758629824665,1.61012558,4205.2,4205.1,0.02]
[1758629824853,1.95463227,4205.2,4205.1,0.02]
[1758629825163,1.37794128,4205.2,4205.1,0.02]
[1758629825399,1.51080268,4205.2,4205.1,0.02]
[1758629826263,1.51080551,4205.2,4205.1,0.02]
[1758629826467,9.26280551,4205.2,4205.1,2.39806473]
[1758629826768,9.24386423,4205.2,4205.1,2.39806473]
[1758629827268,9.24386423,4205.2,4205.1,0.02]
[1758629827578,10.40604289,4205.2,4205.1,0.02]
[1758629828335,13.57605107,4205.2,4205.1,0.02]
[1758629829352,13.57629111,4205.2,4205.1,0.02]
[1758629831059,11.19828293,4205.2,4205.1,0.02]
[1758629831261,4.29528293,4205.2,4205.1,0.02]
[1758629831473,9.24410427,4205.2,4205.1,0.02]
[1758629831870,3.13310427,4205.2,4205.1,0.02]
[1758629832073,9.24510427,4205.2,4205.1,0.02]
[1758629832759,12.41523428,4205.2,4205.1,0.02]
[1758629832961,12.28200818,4205.2,4205.1,0.02]
[1758629833157,13.74799862,4205.2,4205.1,0.02]
[1758629833687,14.10348737,4205.2,4205.1,0.02]
[1758629833860,13.88130743,4205.2,4205.1,0.02]
[1758629834059,13.88130743,4205.2,4204.1,0.02]
[1758629834060,2.37825287,4204.8,4204.1,2.39862036]
[1758629834282,3.0,4204.6,4204.1,2.39862036]
[1758629834490,3.0,4204.4,4204.1,2.39862036]
[1758629834672,3.0,4204.2,4204.1,0.02]
[1758629834876,7.4084944,4204.2,4204.1,2.84523038]
[1758629835874,7.4084944,4204.2,4204.1,0.02]
[1758629836074,8.39243293,4204.2,4204.1,0.02]
[1758629836471,9.18443293,4204.2,4204.1,0.02]
[1758629837194,9.18443293,4204.2,4204.1,0.4666]
[1758629837498,9.4654944,4204.2,4204.1,0.4666]
[1758629837792,9.4654944,4204.2,4204.1,0.02]
[1758629838499,3.3554944,4204.2,4204.1,0.02]
[1758629838659,7.052,4204.2,4204.1,2.84523038]
[1758629838990,9.46569625,4204.2,4204.1,2.84523038]
[1758629839374,3.35569625,4204.2,4204.1,2.84523038]
[1758629839577,6.68869625,4204.2,4204.1,2.84523038]
[1758629839900,3.35569625,4204.2,4204.1,2.84523038]
[1758629840198,7.40869625,4204.2,4204.1,2.84523038]
[1758629840426,0.35569625,4204.2,4204.1,2.84523038]
[1758629840902,1.10669625,4204.2,4204.1,17.34523038]
[1758629843097,0.35569625,4204.2,4204.1,17.34523038]
[1758629843296,0.13338609,4204.2,4204.1,17.34523038]
[1758629843464,0.13338609,4204.2,4204.1,17.46363038]
[1758629845623,0.1184,4204.9,4204.4,2.37846066]
[1758629845829,0.22242087,4204.8,4204.7,2.37829096]
[1758629846216,0.22242087,4204.8,4204.7,2.82489096]
[1758629846618,0.22162087,4204.8,4204.7,2.82489096]
[1758629848806,0.22162087,4204.8,4204.7,3.06889096]
[1758629849215,0.1184,4204.9,4204.8,2.37823439]
[1758629849407,0.1184,4204.9,4204.8,3.06883439]
[1758629849604,0.1184,4204.9,4204.8,17.56883439]
[1758629850935,3.1184,4204.9,4204.8,17.56883439]
[1758629851851,0.1184,4204.9,4204.8,17.56883439]
[1758629852145,0.001,4205.2,4204.8,17.56883439]
[1758629852146,0.001,4205.2,4205.1,2.37806473]
[1758629852304,6.0164,4205.2,4205.1,2.37806473]
[1758629852720,6.0164,4205.2,4205.1,3.06866473]
[1758629853211,6.0164,4205.2,4205.1,17.56866473]
[1758629854253,7.1654,4205.2,4205.1,17.56866473]
[1758629855037,3.1194,4205.2,4205.1,17.56866473]
[1758629855241,3.001,4205.2,4205.1,17.56866473]
[1758629855545,3.001,4205.2,4205.1,16.87806473]
[1758629856341,3.001,4205.2,4205.1,2.37806473]
[1758629856727,3.001,4205.2,4205.1,16.87806473]
[1758629857620,3.13436988,4205.2,4205.1,16.87806473]
[1758629859015,7.17936988,4205.2,4205.1,16.87806473]
[1758629859438,7.87106988,4205.2,4205.1,2.37806473]
[1758629859835,8.09333689,4205.2,4205.1,2.37806473]
[1758629860652,7.87106988,4205.2,4205.1,2.37806473]
[1758629860851,3.13436988,4205.2,4205.1,3.06866473]
[1758629861147,0.13436988,4205.2,4205.1,3.06866473]
[1758629861349,4.17636988,4205.2,4205.1,3.06866473]
[1758629862148,0.13436988,4205.2,4205.1,3.06866473]
[1758629863556,0.13436988,4205.2,4205.1,17.56866473]
[1758629863719,0.60786988,4205.2,4205.1,14.5]
[1758629863921,0.83346988,4205.2,4205.1,16.87806473]
[1758629864120,1.20627124,4205.2,4205.1,16.87806473]
[1758629864535,0.83346988,4205.2,4205.1,16.87806473]
[1758629864832,0.83346988,4205.2,4205.1,2.37806473]
[1758629865029,0.83346988,4205.2,4205.0,2.37810721]
[1758629865249,0.83346988,4205.2,4204.9,2.37817784]
[1758629865250,3.0,4205.0,4204.9,2.37817784]
[1758629865451,3.0,4205.0,4204.5,14.5]
[1758629865452,4.07367607,4205.0,4204.5,14.5]
[1758629865649,0.83246988,4204.9,4204.2,2.3785738]
[1758629865851,3.0,4204.7,4204.6,2.37834752]
[1758629866033,3.13336988,4204.7,4204.6,2.37834752]
[1758629867553,3.13347226,4204.7,4204.6,2.37834752]
[1758629868145,0.13347226,4204.7,4204.6,2.37834752]
[1758629868350,7.17847226,4204.7,4204.6,2.37834752]
[1758629868550,7.40092602,4204.7,4204.6,2.37834752]
[1758629869362,7.39892602,4204.7,4204.6,2.37834752]
[1758629869568,7.39792602,4204.7,4204.6,17.11174752]
[1758629869769,3.35592602,4204.7,4204.6,17.11174752]
[1758629869970,7.39692602,4204.7,4204.6,17.11174752]
[1758629870172,7.39692602,4204.7,4204.6,16.87834752]
[1758629871156,7.39692602,4204.7,4204.6,17.11174752]
[1758629871364,7.39692602,4204.7,4204.6,16.87834752]
[1758629871567,3.35512602,4204.7,4204.6,17.11174752]
[1758629871743,3.35541703,4204.7,4204.6,17.11174752]
[1758629871944,7.17267226,4204.7,4204.6,17.56014752]
[1758629872576,7.26277375,4204.7,4204.6,17.56014752]
[1758629873176,7.26277375,4204.7,4204.6,2.37834752]
[1758629873573,7.26277375,4204.7,4204.6,2.38234752]
[1758629873778,7.38117375,4204.7,4204.6,2.38234752]
[1758629875485,7.38117375,4204.7,4204.6,2.61574752]
[1758629875848,7.38017375,4204.7,4204.6,3.06414752]
[1758629876375,0.34117375,4204.7,4204.6,2.38234752]
[1758629876578,1e-08,4204.7,4204.6,3.08793099]
[1758629877073,1e-08,4204.7,4204.6,17.58793099]
[1758629877279,1e-08,4204.7,4204.6,16.88234752]
[1758629877482,1e-08,4204.7,4204.6,17.11574752]
[1758629878681,1e-08,4204.7,4204.6,17.56414752]
[1758629879378,1e-08,4204.7,4204.6,16.88234752]
[1758629880249,1e-08,4204.7,4204.6,17.11574752]
[1758629882403,1e-08,4204.7,4204.6,16.88234752]
[1758629882572,1e-08,4204.7,4204.6,19.42414752]
[1758629883299,1e-08,4204.7,4204.6,23.46014752]
[1758629883500,0.13365049,4204.7,4204.6,23.46014752]
[1758629883662,1e-08,4204.8,4204.7,2.37829096]
[1758629884794,1e-08,4204.8,4204.7,3.08387386]
[1758629886602,1e-08,4204.8,4204.7,3.20227386]
[1758629886922,1e-08,4204.8,4204.7,5.03849096]
[1758629887269,1e-08,4204.8,4204.7,18.85669096]
[1758629887473,1e-08,4204.8,4204.7,23.57349096]
[1758629888800,1e-08,4204.8,4204.7,21.71349096]
[1758629893057,1e-08,4204.8,4204.7,21.03169096]
[1758629893234,1e-08,4204.8,4204.7,21.59899096]
[1758629893402,1e-08,4204.8,4204.7,21.71739096]
[1758629894623,1e-08,4204.8,4204.7,22.50939096]
[1758629894956,1e-08,4204.8,4204.7,21.71739096]
[1758629895138,1e-08,4204.8,4204.7,21.26459096]
[1758629895338,1e-08,4204.8,4204.7,21.71739096]
[1758629896656,0.00020001,4205.2,4204.7,21.71739096]
[1758629896952,0.00020001,4205.2,4205.1,2.37806473]
[1758629897154,0.00020001,4205.2,4205.1,2.49646473]
[1758629897454,0.13371258,4205.2,4205.1,16.99646473]
[1758629898413,0.00020001,4205.2,4205.1,16.99646473]
[1758629898618,0.13371593,4205.2,4205.1,16.99646473]
[1758629899651,0.13371593,4205.2,4205.1,17.24506473]
[1758629899860,0.00020001,4205.2,4205.1,17.24506473]
[1758629904350,0.13377731,4205.2,4205.1,17.24506473]
[1758629905256,0.57107731,4205.2,4205.1,2.49646473]
[1758629905556,0.81377731,4205.2,4205.1,2.49646473]
[1758629906248,0.81381703,4205.2,4205.1,2.49646473]
[1758629906627,0.81381703,4205.2,4205.1,2.37806473]
[1758629907761,1.03660577,4205.2,4205.1,2.37806473]
[1758629907950,1.03660577,4205.2,4205.1,16.87806473]
[1758629908569,1.03660577,4205.2,4204.6,0.004]
[1758629908739,1.03660577,4205.2,4205.0,2.37812128]
[1758629908740,5.00856835,4205.1,4205.0,2.37812128]
[1758629909061,5.66968224,4205.1,4205.0,2.37812128]
[1758629909929,0.1184,4205.0,4204.9,2.37816671]
[1758629910263,4.17380221,4205.0,4204.9,2.37816671]
[1758629911962,4.15486093,4205.0,4204.9,2.37816671]
[1758629913667,4.15486093,4205.0,4204.9,16.87816671]
[1758629913862,4.02124391,4205.0,4204.9,16.87816671]
[1758629914072,4.15484201,4205.0,4204.9,16.87816671]
[1758629914568,8.17584201,4205.0,4204.9,16.87816671]
[1758629916667,8.17584201,4205.0,4204.6,0.004]
[1758629916832,8.15320734,4204.8,4204.6,2.38234358]
[1758629917037,1.17378329,4204.7,4204.6,2.38234358]
[1758629918644,0.1335981,4204.7,4204.6,2.38234358]
[1758629918968,0.00020001,4205.2,4205.0,2.37812128]
[1758629919134,0.00020001,4205.2,4205.1,2.40184537]
[1758629919348,0.00020001,4205.2,4205.1,17.61964537]
[1758629919551,0.00020001,4205.2,4205.1,17.59586473]
[1758629919981,0.00020001,4205.2,4205.1,16.87806473]
[1758629920364,0.00020001,4205.2,4205.1,17.12666473]
[1758629920847,0.00020001,4205.2,4205.1,16.87806473]
[1758629921486,0.13734128,4205.3,4205.2,2.37800818]
[1758629921791,4.24249387,4205.3,4205.2,2.37800818]
[1758629922263,4.02,4205.3,4205.2,2.37800818]
[1758629924692,4.94380644,4205.3,4205.2,2.37800818]
[1758629924906,5.06220644,4205.3,4205.2,2.37800818]
[1758629925250,4.36090644,4205.3,4205.2,2.37800818]
[1758629925598,4.35990644,4205.3,4205.2,2.37800818]
[1758629926994,0.34090644,4205.3,4205.2,2.37800818]
[1758629927291,4.36090644,4205.3,4205.2,2.37800818]
[1758629929198,4.1384,4205.3,4205.2,2.37800818]
[1758629929686,4.1384,4205.3,4205.2,2.61170818]
[1758629930085,4.36097543,4205.3,4205.2,2.37800818]
[1758629930263,4.35897543,4205.3,4205.2,2.37800818]
[1758629930619,4.35997543,4205.3,4205.2,2.37800818]
[1758629930799,4.49353374,4205.3,4205.2,2.37800818]
[1758629933487,5.19483374,4205.3,4205.2,2.37800818]
[1758629933691,4.49353374,4205.3,4205.2,2.37800818]
[1758629934113,4.95633374,4205.3,4205.2,2.37800818]
[1758629934286,4.48953374,4205.3,4205.2,2.37800818]
[1758629935817,4.95233374,4205.3,4205.2,2.37800818]
[1758629936012,5.19083374,4205.3,4205.2,2.37800818]
[1758629936604,1.17683374,4205.3,4205.2,2.37800818]
[1758629936803,3.60003374,4205.3,4205.2,2.37800818]
[1758629937108,4.06294828,4205.3,4205.2,2.37800818]
[1758629938421,4.06296211,4205.3,4205.2,2.37800818]
[1758629939179,7.06296211,4205.3,4205.2,2.37800818]
[1758629939385,3.0,4205.2,4205.0,2.37809272]
[1758629939617,15.54066474,4205.1,4205.0,2.37809272]
[1758629939920,15.54066474,4205.1,4204.8,0.004]
[1758629939921,3.1184,4205.0,4204.9,2.37817784]
[1758629940123,3.1184,4205.0,4204.8,0.004]
[1758629940124,3.25208668,4205.0,4204.8,2.38221908]
[1758629940296,8.08779525,4204.9,4204.8,2.38223439]
[1758629940496,8.06885397,4204.9,4204.8,0.004]
[1758629940902,10.12585397,4204.9,4204.8,0.004]
[1758629941499,12.50403181,4204.9,4204.8,0.004]
[1758629941931,13.29603181,4204.9,4204.8,0.004]
[1758629942139,15.73886941,4204.9,4204.8,0.004]
[1758629942291,23.89207675,4204.9,4204.8,0.004]
[1758629942500,23.89207675,4204.9,4204.4,0.004]
[1758629942501,2.37840409,4204.5,4204.4,0.004]
[1758629942756,6.17051723,4204.3,4204.2,0.004]
[1758629942896,14.32378114,4204.2,4203.8,0.004]
[1758629943240,17.94287271,4204.2,4203.8,0.004]
[1758629943594,18.31582937,4204.2,4203.8,0.004]
[1758629943825,18.31542846,4204.2,4203.8,0.004]
[1758629944324,24.38642846,4204.2,4203.8,0.004]
[1758629944531,24.38610332,4204.2,4203.8,0.004]
[1758629945114,22.32810332,4204.2,4203.8,0.004]
[1758629945656,24.38610332,4204.2,4203.8,0.004]
[1758629945933,0.792,4203.8,4203.3,0.004]
[1758629946132,18.71347545,4203.7,4203.3,0.004]
[1758629946313,21.50506173,4203.7,4203.3,0.004]
[1758629946513,21.50426173,4203.7,4203.3,0.004]
[1758629947027,23.56226173,4203.7,4203.3,0.004]
[1758629947421,17.48926173,4203.7,4203.3,0.004]
[1758629947638,23.56126173,4203.7,4203.3,0.004]
[1758629948136,17.48926173,4203.7,4203.3,0.004]
[1758629948435,23.56126173,4203.7,4203.3,0.004]
[1758629948634,25.20848186,4203.7,4203.3,0.004]
[1758629948835,6.95799767,4203.7,4203.3,0.004]
[1758629949135,23.1000543,4203.7,4203.3,0.004]
[1758629949545,14.64919758,4203.7,4203.3,0.004]
[1758629949743,20.72119758,4203.7,4203.3,0.004]
[1758629949944,23.1000543,4203.7,4203.3,0.004]
[1758629950136,20.72119758,4203.7,4203.3,0.004]
[1758629950447,10.48163372,4203.7,4203.3,0.004]
[1758629950742,13.61394884,4203.7,4203.3,0.004]
[1758629950934,13.39251759,4203.7,4203.3,0.004]
[1758629951134,13.61387899,4203.7,4203.3,0.004]
[1758629951844,6.84157899,4203.7,4203.3,0.004]
[1758629952014,9.79873806,4203.7,4203.6,2.38291331]
[1758629952213,9.79873806,4203.7,4203.6,0.004]
[1758629952409,3.72773806,4203.7,4203.6,0.004]
[1758629952616,9.79873806,4203.7,4203.6,0.2362]
[1758629952930,9.79873806,4203.7,4203.6,0.004]
[1758629953130,4.70761187,4203.7,4203.6,0.004]
[1758629953330,9.79873806,4203.7,4203.6,2.38291331]
[1758629953846,9.79873806,4203.7,4203.6,0.004]
[1758629954009,9.79873806,4203.7,4203.6,2.38291331]
[1758629955012,9.79873806,4203.7,4203.6,0.004]
[1758629956444,10.10862294,4203.7,4203.6,0.004]
[1758629956647,10.87028523,4203.7,4203.6,0.004]
[1758629956943,4.79928523,4203.7,4203.6,0.004]
[1758629957149,9.85842294,4203.7,4203.6,0.004]
[1758629958131,10.08522294,4203.7,4203.6,0.004]
[1758629958912,8.02622294,4203.7,4203.6,0.004]
[1758629959150,10.08422294,4203.7,4203.6,0.004]
[1758629960116,4.01522294,4203.7,4203.6,0.004]
[1758629960316,10.72161563,4203.7,4203.6,0.004]
[1758629960755,11.09460562,4203.7,4203.6,0.004]
[1758629961338,9.03660562,4203.7,4203.6,0.004]
[1758629961545,10.66090562,4203.7,4203.6,0.004]
[1758629961952,11.13540562,4203.7,4203.6,0.004]
[1758629962551,4.36710562,4203.7,4203.6,0.004]
[1758629962720,10.43331866,4203.7,4203.6,0.004]
[1758629963055,11.13461866,4203.7,4203.6,0.004]
[1758629963920,4.36731866,4203.7,4203.6,0.004]
[1758629964121,10.43131866,4203.7,4203.6,0.004]